lending/lending_fUSD_20240111
["ID","MTS","AMOUNT","RATE_DAILY","PERIOD"]
[311180981,1704971768617,-2000.0,0.00036075,2]
[311180982,1704971768647,-23900.0,0.000361,2]
[311180983,1704971768671,-250.0,0.00036144,111]
[311180984,1704971768699,-500.0,0.00036712,4]
[311180985,1704971768727,-513.31958232,0.00036712,4]
[311180986,1704971768757,-498.6919248,0.00036712,4]
[311180987,1704971768779,-509.79049323,0.00036712,4]
[311180988,1704971768811,-500.0,0.00036712,4]
[311180989,1704971768840,-500.0,0.00036712,4]
[311180990,1704971768864,-500.0,0.00036712,2]
[311180991,1704971768888,-530.26244891,0.00036712,4]
[311180992,1704971768914,-500.0,0.00036799,4]
[311180993,1704971768940,-500.0,0.00036799,4]
[311180994,1704971768964,-318.38790176,0.00036907,2]
[311180995,1704971768989,-654.02530907,0.00036907,8]
[311180996,1704971769018,-5518.96390717,0.00037,10]
[311180997,1704971769043,-5000.0,0.00037,3]
[311180998,1704971769067,-2000.0,0.00037,2]
[311180999,1704971769090,-250.91,0.00037,2]
[311181000,1704971769113,-1210.78996509,0.00037004,4]
[311181001,1704971769138,-155.0,0.00037004,2]
[311181002,1704971769162,-914.98,0.00037004,4]
[311181003,1704971769185,-157.08820614,0.00037004,4]
[311181004,1704971769210,-1272.76454217,0.00037005,14]
[311181005,1704971769235,-1119.51040193,0.00037005,14]
[311181006,1704971769266,-205.67997889,0.00037005,2]
[311181007,1704971769291,-9790.89188053,0.00037005,2]
[311181008,1704971769315,-1210.70508879,0.00037005,4]
[311181009,1704971769340,-3402.79378731,0.00037005,4]
[311181010,1704971769363,-1325.92342873,0.00037005,2]
[311181011,1704971769386,-162.16949098,0.00037005,4]
[311181012,1704971769411,-527.48311574,0.00037005,4]
[311181013,1704971769435,-12271.94854644,0.00037005,2]
[311181014,1704971769607,-100000.0,0.00037005,2]
[311181015,1704971772133,-88603.51683701,0.00037005,2]
[311181016,1704971772362,-500.0,0.00037006,4]
[311181017,1704971772385,-500.0,0.00037006,4]
[311181018,1704971772409,-500.0,0.00037006,4]
[311181019,1704971772432,-500.0,0.00037006,4]
[311181020,1704971772455,-514.69,0.00037006,4]
[311181021,1704971772481,-2104.66,0.00037006,4]
[311181022,1704971772507,-500.0,0.00037006,5]
[311181023,1704971772530,-500.0,0.00037006,4]
[311181024,1704971772559,-575.96,0.00037006,4]
[311181025,1704971772589,-500.0,0.00037006,4]
[311181026,1704971772614,-500.0,0.00037006,4]
[311181027,1704971772638,-500.0,0.00037006,4]
[311181028,1704971772665,-500.0,0.00037006,4]
[311181029,1704971772694,-500.0,0.00037006,4]
[311181030,1704971772720,-421.01327273,0.00037006,4]
[311181031,1704971772744,-500.0,0.00037006,4]
[311181032,1704971772772,-353.53455155,0.00037006,4]
[311181033,1704971772796,-500.0,0.00037006,4]
[311181034,1704971772820,-500.0,0.00037006,4]
[311181035,1704971772844,-426.62533871,0.00037006,2]
[311181036,1704971779444,-159.65,0.00036633,2]
[311181037,1704971779467,-616.34425673,0.00037006,2]
[311181038,1704971779492,-156.04741476,0.00037006,2]
[311181039,1704971779517,-2428.74843086,0.00037006,2]
[311181040,1704971779541,-1476.12732913,0.00037006,2]
[311181041,1704971779568,-10773.41272173,0.00037006,4]
[311181042,1704971779595,-3428.49431744,0.00037006,4]
[311181043,1704971779619,-80961.17552935,0.00037007,2]
[311181044,1704971780879,-500.0,0.00037004,4]
[311181045,1704971780903,-99500.0,0.00037007,2]
[311181046,1704971783075,-500.0,0.00037006,4]
[311181047,1704971783099,-85454.44427065,0.00037007,2]
[311181048,1704971783121,-250.8218,0.00037007,2]
[311181049,1704971783145,-280.0592,0.00037007,2]
[311181050,1704971783168,-2938.1645,0.00037007,2]
[311181051,1704971783190,-2869.8311,0.00037007,2]
[311181052,1704971783213,-2810.2567,0.00037007,2]
[311181053,1704971783245,-4619.66023429,0.00037063,10]
[311181054,1704971783276,-276.76219506,0.00037073,4]
[311181055,1704971844194,-479.23,0.00034429,2]
[311181056,1704971844222,-4497.9013599,0.00035871,10]
[311181057,1704971844246,-365.04,0.00036333,2]
[311181058,1704971844270,-479.23,0.00036693,2]
[311181059,1704971844293,-5000.0,0.00037,3]
[311181060,1704971844319,-634.28855369,0.00037,2]
[311181061,1704971844342,-638.7336065,0.00037004,4]
[311181062,1704971844366,-500.0,0.00037004,4]
[311181063,1704971844389,-207.8643393,0.00037004,4]
[311181064,1704971844413,-500.0,0.00037004,4]
[311181065,1704971844436,-500.0,0.00037004,5]
[311181066,1704971844460,-1000.0,0.00037005,4]
[311181067,1704971844485,-717.05872278,0.00037006,14]
[311181068,1704971844509,-500.0,0.00037006,4]
[311181069,1704971844533,-500.0,0.00037006,4]
[311181070,1704971844559,-500.0,0.00037006,4]
[311181071,1704971844584,-500.0,0.00037006,4]
[311181072,1704971844607,-443.54848538,0.00037006,4]
[311181073,1704971844631,-383.98,0.00037006,4]
[311181074,1704971844654,-504.59640061,0.00037006,4]
[311181075,1704971844677,-500.0,0.00037006,4]
[311181076,1704971844700,-500.0,0.00037006,4]
[311181077,1704971844724,-500.0,0.00037006,4]
[311181078,1704971844747,-500.0,0.00037006,4]
[311181079,1704971844929,-510.31616285,0.00037006,4]
[311181080,1704971844954,-516.99218449,0.00037006,4]
[311181081,1704971844978,-500.0,0.00037006,4]
[311181082,1704971845002,-511.19363773,0.00037006,4]
[311181083,1704971845025,-500.0,0.00037006,4]
[311181084,1704971845049,-500.0,0.00037006,4]
[311181085,1704971845074,-500.0,0.00037006,4]
[311181086,1704971845097,-500.0,0.00037006,4]
[311181087,1704971845121,-500.0,0.00037006,4]
[311181088,1704971845145,-500.0,0.00037006,4]
[311181089,1704971845169,-500.0,0.00037006,4]
[311181090,1704971845193,-151.58409975,0.00037006,4]
[311181091,1704971845216,-607.4093355,0.00037006,4]
[311181092,1704971845240,-159.61673425,0.00037006,4]
[311181093,1704971845264,-519.52254804,0.00037006,4]
[311181094,1704971845287,-616.75,0.00037006,4]
[311181095,1704971845314,-511.02313651,0.00037006,4]
[311181096,1704971845339,-500.0,0.00037006,4]
[311181097,1704971845362,-500.0,0.00037006,4]
[311181098,1704971845384,-500.0,0.00037006,4]
[311181099,1704971845408,-2000.0,0.00037007,2]
[311181100,1704971845432,-500.0,0.00037073,5]
[311181101,1704971845456,-500.0,0.00037073,4]
[311181102,1704971845480,-500.0,0.00037073,4]
[311181103,1704971845505,-500.0,0.00037073,4]
[311181104,1704971845530,-500.0,0.00037073,4]
[311181105,1704971845554,-500.0,0.00037073,4]
[311181106,1704971845581,-500.0,0.00037073,4]
[311181107,1704971845605,-500.0,0.00037073,4]
[311181108,1704971845630,-162.96136658,0.00037144,2]
[311181109,1704971845655,-310.61,0.00037155,2]
[311181110,1704971845679,-500.0,0.00037197,2]
[311181111,1704971845702,-500.0,0.00037197,4]
[311181112,1704971845725,-1000.0,0.00037197,2]
[311181113,1704971845749,-500.0,0.00037197,4]
[311181114,1704971845774,-151.40111,0.00037198,6]
[311181115,1704971845798,-5740.87065919,0.000372,7]
[311181116,1704971845822,-922.9,0.00037213,2]
[311181117,1704971845846,-500.0,0.0003726,4]
[311181118,1704971845869,-500.0,0.0003726,4]
[311181119,1704971845893,-159.65,0.0003727,2]
[311181120,1704971845919,-500.0,0.00037278,4]
[311181121,1704971845942,-500.0,0.00037278,4]
[311181122,1704971845965,-500.0,0.00037278,4]
[311181123,1704971845990,-500.0,0.00037278,5]
[311181124,1704971846013,-2104.66,0.0003728,4]
[311181125,1704971846037,-500.0,0.0003728,4]
[311181126,1704971846062,-575.96,0.0003728,4]
[311181127,1704971846088,-500.0,0.0003728,4]
[311181128,1704971846114,-500.0,0.0003728,4]
[311181129,1704971846139,-500.0,0.0003728,4]
[311181130,1704971846164,-500.0,0.0003728,4]
[311181131,1704971846189,-500.0,0.0003728,4]
[311181132,1704971846212,-500.0,0.0003728,4]
[311181133,1704971846236,-500.0,0.0003728,4]
[311181134,1704971846259,-500.0,0.0003728,4]
[311181135,1704971846283,-500.0,0.0003728,4]
[311181136,1704971846306,-500.0,0.0003728,4]
[311181137,1704971846330,-500.0,0.0003728,4]
[311181138,1704971846354,-151.44,0.00037283,2]
[311181139,1704971846379,-151.40111,0.00037298,6]
[311181140,1704971846402,-4619.66023429,0.00037337,10]
[311181141,1704971846425,-500.0,0.00037347,5]
[311181142,1704971846449,-500.0,0.00037347,4]
[311181143,1704971846473,-500.0,0.00037347,4]
[311181144,1704971846498,-500.0,0.00037347,4]
[311181145,1704971846523,-500.0,0.00037347,4]
[311181146,1704971846548,-500.0,0.00037347,4]
[311181147,1704971846574,-500.0,0.00037347,4]
[311181148,1704971846599,-500.0,0.00037347,4]
[311181149,1704971846623,-162.96136658,0.00037393,2]
[311181150,1704971846646,-4166.0,0.00037394,2]
[311181151,1704971846669,-18404.07,0.00037394,2]
[311181152,1704971846692,-1355.0,0.00037394,2]
[311181153,1704971846715,-19673.0,0.00037394,2]
[311181154,1704971846739,-2353.179,0.00037394,2]
[311181155,1704971846762,-1846.0,0.00037394,2]
[311181156,1704971846786,-834.0,0.00037394,2]
[311181157,1704971846810,-944.0,0.00037394,2]
[311181158,1704971846833,-1251.0,0.00037394,2]
[311181159,1704971846856,-1234.0,0.00037394,2]
[311181160,1704971846881,-1781.451,0.00037394,2]
[311181161,1704971846904,-318.0,0.00037394,2]
[311181162,1704971846929,-151.40111,0.00037398,6]
[311181163,1704971846953,-204.0,0.00037421,2]
[311181164,1704971846976,-150.91204937,0.00037447,7]
[311181165,1704971846999,-500.0,0.00037471,2]
[311181166,1704971847021,-500.0,0.00037471,4]
[311181167,1704971847043,-500.0,0.00037471,4]
[311181168,1704971847067,-4619.66023429,0.00037497,10]
[311181169,1704971847091,-660.85101121,0.00037497,14]
[311181170,1704971847117,-151.40111,0.00037498,6]
[311181171,1704971847141,-8629.86545192,0.00037507,8]
[311181172,1704971847165,-888.68984238,0.00037507,8]
[311181173,1704971847189,-1000.0,0.00037507,10]
[311181174,1704971847213,-598.48417369,0.00037507,8]
[311181175,1704971847237,-1143.15322846,0.00037507,8]
[311181176,1704971847261,-158.46,0.00037515,2]
[311181177,1704971847284,-500.0,0.00037534,4]
[311181178,1704971847305,-500.0,0.00037534,4]
[311181179,1704971847331,-500.0,0.00037552,4]
[311181180,1704971847354,-500.0,0.00037552,4]
[311181181,1704971847378,-500.0,0.00037552,4]
[311181182,1704971847401,-500.0,0.00037552,5]
[311181183,1704971847425,-2104.66,0.00037554,4]
[311181184,1704971847448,-441.90163392,0.00037554,4]
[311181185,1704971847472,-575.96,0.00037554,4]
[311181186,1704971847495,-500.0,0.00037554,4]
[311181187,1704971847518,-500.0,0.00037554,4]
[311181188,1704971847541,-500.0,0.00037554,4]
[311181189,1704971847565,-500.0,0.00037554,4]
[311181190,1704971847590,-500.0,0.00037554,4]
[311181191,1704971847613,-500.0,0.00037554,4]
[311181192,1704971847639,-500.0,0.00037554,4]
[311181193,1704971847782,-500.0,0.00037554,4]
[311181194,1704971847806,-500.0,0.00037554,4]
[311181195,1704971847831,-500.0,0.00037554,4]
[311181196,1704971847853,-500.0,0.00037554,4]
[311181197,1704971847877,-150.91204937,0.00037566,7]
[311181198,1704971847901,-154.46462244,0.00037578,7]
[311181199,1704971847925,-38063.03989806,0.0003759,2]
[311181200,1704971847950,-151.40111,0.00037598,6]
[311181201,1704971847975,-4304.0,0.0003761,2]
[311181202,1704971848000,-4619.66023429,0.00037611,10]
[311181203,1704971848045,-500.0,0.00037621,5]
[311181204,1704971848074,-500.0,0.00037621,4]
[311181205,1704971848099,-500.0,0.00037621,4]
[311181206,1704971848126,-313.81344221,0.00037621,4]
[311181207,1704971848152,-500.0,0.00037621,4]
[311181208,1704971848176,-500.0,0.00037621,4]
[311181209,1704971848202,-500.0,0.00037621,4]
[311181210,1704971848227,-500.0,0.00037621,4]
[311181211,1704971848252,-162.96136658,0.00037641,2]
[311181212,1704971848276,-728.273749,0.00037685,10]
[311181213,1704971848301,-151.40111,0.00037698,6]
[311181214,1704971848329,-700.0,0.000377,13]
[311181215,1704971848354,-158.76484475,0.00037729,2]
[311181216,1704971848377,-274.70622268,0.0003774,2]
[311181217,1704971848401,-500.0,0.00037745,2]
[311181218,1704971848427,-500.0,0.00037745,4]
[311181219,1704971848451,-500.0,0.00037745,4]
[311181220,1704971848478,-654.02530903,0.00037749,8]
[311181221,1704971848502,-167.63778095,0.0003776,7]
[311181222,1704971848526,-7500.0,0.00037779,2]
[311181223,1704971848551,-1705.58362956,0.0003779,2]
[311181224,1704971848578,-1000.0,0.00037797,2]
[311181225,1704971848604,-151.40111,0.00037798,6]
[311181226,1704971848629,-1000.0,0.000378,13]
[311181227,1704971848654,-500.0,0.00037808,4]
[311181228,1704971848678,-500.0,0.00037808,4]
[311181229,1704971848703,-500.0,0.00037826,4]
[311181230,1704971848730,-500.0,0.00037826,4]
[311181231,1704971848755,-500.0,0.00037826,4]
[311181232,1704971848780,-500.0,0.00037826,5]
[311181233,1704971848806,-2104.66,0.00037828,4]
[311181234,1704971848833,-575.96,0.00037828,4]
[311181235,1704971848857,-500.0,0.00037828,4]
[311181236,1704971848881,-500.0,0.00037828,4]
[311181237,1704971848905,-500.0,0.00037828,4]
[311181238,1704971848929,-500.0,0.00037828,4]
[311181239,1704971848953,-500.0,0.00037828,4]
[311181240,1704971848978,-500.0,0.00037828,4]
[311181241,1704971849003,-500.0,0.00037828,4]
[311181242,1704971849034,-592.53969046,0.00037828,4]
[311181243,1704971849062,-500.0,0.00037828,4]
[311181244,1704971849087,-500.0,0.00037828,4]
[311181245,1704971849112,-573.06647341,0.00037828,4]
[311181246,1704971849137,-158.65407432,0.00037839,7]
[311181247,1704971849161,-485.32,0.00037865,2]
[311181248,1704971849186,-4619.66023429,0.00037869,10]
[311181249,1704971849210,-4619.66023429,0.00037878,10]
[311181250,1704971849234,-181.59497969,0.00037879,2]
[311181251,1704971849258,-97012.8649201,0.00037879,10]
[311181252,1704971849283,-684.70603356,0.00037879,14]
[311181253,1704971849308,-151.13211959,0.00037882,2]
[311181254,1704971849332,-335.38438035,0.00037888,10]
[311181255,1704971849356,-477.73518282,0.00037888,4]
[311181256,1704971849381,-1205.05239709,0.00037888,4]
[311181257,1704971849405,-5359.49078972,0.00037888,4]
[311181258,1704971849431,-162.96136658,0.0003789,2]
[311181259,1704971849454,-262.21210958,0.0003789,2]
[311181260,1704971849480,-178.17572521,0.0003789,28]
[311181261,1704971849504,-899.5246653,0.0003789,2]
[311181262,1704971849529,-500.0,0.00037895,5]
[311181263,1704971849553,-500.0,0.00037895,4]
[311181264,1704971849579,-500.0,0.00037895,4]
[311181265,1704971849605,-500.0,0.00037895,4]
[311181266,1704971849630,-422.9936789,0.00037895,4]
[311181267,1704971849654,-500.0,0.00037895,4]
[311181268,1704971849678,-500.0,0.00037895,4]
[311181269,1704971849703,-158.83625449,0.00037897,2]
[311181270,1704971849728,-151.40111,0.00037898,6]
[311181271,1704971849752,-1000.0,0.00037899,2]
[311181272,1704971849776,-783.52374672,0.000379,14]
[311181273,1704971849801,-1400.0,0.000379,13]
[311181274,1704971849826,-98078.5164118,0.000379,2]
[311181275,1704971849851,-159.65,0.00037906,2]
[311181276,1704971849876,-46783.22194365,0.00037938,2]
[311181277,1704971850136,-514.55447307,0.00037006,4]
[311181278,1704971850163,-500.0,0.00037197,4]
[311181279,1704971850190,-500.0,0.00037471,4]
[311181280,1704971850217,-500.0,0.00037745,4]
[311181281,1704971850242,-51295.29446815,0.00037938,2]
[311181282,1704971850266,-27717.9614057,0.00037948,10]
[311181283,1704971850290,-59949.56652472,0.00037958,4]
[311181284,1704971850313,-505.19333645,0.00037958,4]
[311181285,1704971850337,-10490.16436363,0.00037958,3]
[311181286,1704971850362,-303.85314148,0.00037958,2]
[311181287,1704971850386,-854.1403209,0.00037958,4]
[311181288,1704971850409,-1924.3673319,0.00037959,4]
[311181289,1704971850433,-404.77592196,0.00037959,4]
[311181290,1704971850456,-156.0732664,0.00037959,4]
[311181291,1704971850480,-14557.11099864,0.00037959,4]
[311181292,1704971850504,-519.54844331,0.00037959,4]
[311181293,1704971850527,-213.4225225,0.00037959,4]
[311181294,1704971850552,-1000.0,0.0003796,2]
[311181295,1704971850580,-154.35,0.0003796,2]
[311181296,1704971850743,-150.51,0.0003796,2]
[311181297,1704971850768,-154.35,0.0003797,2]
[311181298,1704971850794,-150.51,0.0003797,2]
[311181299,1704971850822,-150.51,0.0003797,2]
[311181300,1704971850848,-150.51,0.0003797,2]
[311181301,1704971850873,-150.51,0.0003797,2]
[311181302,1704971850897,-150.51,0.0003797,2]
[311181303,1704971850921,-150.51,0.0003797,2]
[311181304,1704971850946,-150.51,0.0003797,2]
[311181305,1704971850973,-150.51,0.0003797,2]
[311181306,1704971850998,-150.51,0.0003797,2]
[311181307,1704971851021,-46106.45265792,0.0003797,3]
[311181308,1704971851046,-167.94131411,0.00037977,2]
[311181309,1704971851072,-1000.0,0.00037979,2]
[311181310,1704971851097,-154.35,0.0003798,2]
[311181311,1704971851126,-150.51,0.0003798,2]
[311181312,1704971851150,-150.51,0.0003798,2]
[311181313,1704971851175,-150.51,0.0003798,2]
[311181314,1704971851200,-98078.5164118,0.0003798,2]
[311181315,1704971851224,-154.35,0.0003798,2]
[311181316,1704971851247,-154.35,0.0003798,2]
[311181317,1704971851274,-150.51,0.0003798,2]
[311181318,1704971851299,-150.51,0.0003798,2]
[311181319,1704971851326,-150.51,0.0003798,2]
[311181320,1704971851350,-150.51,0.0003798,2]
[311181321,1704971851373,-150.51,0.0003798,2]
[311181322,1704971851400,-150.51,0.0003798,2]
[311181323,1704971851424,-150.51,0.0003798,2]
[311181324,1704971851448,-150.51,0.0003798,2]
[311181325,1704971851472,-150.51,0.0003798,2]
[311181326,1704971851497,-150.51,0.0003798,2]
[311181327,1704971851521,-150.51,0.0003798,2]
[311181328,1704971851551,-150.51,0.0003798,2]
[311181329,1704971851576,-150.51,0.0003798,2]
[311181330,1704971851601,-150.51,0.0003798,2]
[311181331,1704971851625,-150.51,0.0003798,2]
[311181332,1704971851650,-150.51,0.0003798,2]
[311181333,1704971851674,-150.51,0.0003798,2]
[311181334,1704971851699,-150.51,0.0003798,2]
[311181335,1704971851725,-150.51,0.0003798,2]
[311181336,1704971851752,-150.51,0.0003798,2]
[311181337,1704971851780,-150.51,0.0003798,2]
[311181338,1704971851807,-150.51,0.0003798,2]
[311181339,1704971851836,-150.51,0.0003798,2]
[311181340,1704971851860,-150.51,0.0003798,2]
[311181341,1704971851884,-150.51,0.0003798,2]
[311181342,1704971851908,-150.51,0.0003798,2]
[311181343,1704971851931,-150.51,0.0003798,2]
[311181344,1704971851955,-175948.91309736,0.0003798,2]
[311181345,1704971852067,-20208.11972664,0.0003798,2]
[311181346,1704971852094,-3484.91169873,0.00037982,11]
[311181347,1704971852117,-1500.0,0.00037989,2]
[311181348,1704971852140,-178.72179619,0.00037989,4]
[311181349,1704971852164,-182.50916276,0.00037989,4]
[311181350,1704971852188,-394.45290587,0.00037989,4]
[311181351,1704971852212,-489.42852865,0.00037989,4]
[311181352,1704971852243,-442.45607545,0.00037989,4]
[311181353,1704971852270,-186.54033822,0.00037989,2]
[311181354,1704971852293,-1000.0,0.00037989,2]
[311181355,1704971852317,-1000.0,0.00037989,2]
[311181356,1704971852340,-1000.0,0.00037989,2]
[311181357,1704971852364,-1000.0,0.00037989,2]
[311181358,1704971852388,-1000.0,0.00037989,2]
[311181359,1704971852412,-1000.0,0.00037989,2]
[311181360,1704971852438,-757.77143673,0.00037989,2]
[311181361,1704971852465,-196157.032824,0.00037989,2]
[311181362,1704971852492,-150000.0,0.0003799,3]
[311181363,1704971852515,-172.49654488,0.0003799,2]
[311181364,1704971852541,-150.51,0.0003799,2]
[311181365,1704971852567,-150.51,0.0003799,2]
[311181366,1704971852596,-150.51,0.0003799,2]
[311181367,1704971852623,-890.63870335,0.0003799,2]
[311181368,1704971852649,-118503.39025853,0.0003799,3]
[311181369,1704971852690,-31496.60974147,0.0003799,3]
[311181370,1704971852714,-150000.0,0.0003799,3]
[311181371,1704971852739,-150000.0,0.0003799,3]
[311181372,1704971852763,-167.94131411,0.00037997,2]
[311181373,1704971852790,-151.40111,0.00037998,6]
[311181374,1704971852816,-168184.04783442,0.00037999,2]
[311181375,1704971852857,-500000.0,0.00037999,2]
[311181376,1704971852893,-500000.0,0.00037999,2]
[311181377,1704971852932,-272943.28265437,0.00037999,2]
[311181378,1704971852957,-100000.0,0.00038,5]
[311181379,1704971852985,-127056.71734563,0.00038,3]
[311181380,1704971863913,-710.09,0.00036874,15]
[311181381,1704971863937,-5000.0,0.00037,3]
[311181382,1704971863965,-500.0,0.00037006,4]
[311181383,1704971863988,-502.13726787,0.00037006,4]
[311181384,1704971864012,-556.32777224,0.00037006,4]
[311181385,1704971864036,-524.82715714,0.00037006,4]
[311181386,1704971864062,-520.01556415,0.00037006,4]
[311181387,1704971864087,-503.88266932,0.00037006,4]
[311181388,1704971864111,-500.0,0.00037006,4]
[311181389,1704971864133,-515.42368966,0.00037006,4]
[311181390,1704971864157,-500.0,0.00037006,4]
[311181391,1704971864180,-2000.0,0.00037073,2]
[311181392,1704971864204,-1000.0,0.00037213,4]
[311181393,1704971864230,-1000.0,0.00037507,10]
[311181394,1704971864256,-198.46,0.000377,3]
[311181395,1704971864281,-198.46,0.000377,3]
[311181396,1704971864307,-198.46,0.000377,3]
[311181397,1704971864333,-198.46,0.000377,3]
[311181398,1704971864359,-198.46,0.000377,3]
[311181399,1704971864384,-198.46,0.000377,3]
[311181400,1704971864409,-198.46,0.000377,3]
[311181401,1704971864433,-198.46,0.000377,3]
[311181402,1704971864457,-198.46,0.000377,3]
[311181403,1704971864482,-198.46,0.000377,3]
[311181404,1704971864507,-198.46,0.000377,3]
[311181405,1704971864533,-198.46,0.000377,3]
[311181406,1704971864558,-198.46,0.000377,3]
[311181407,1704971864586,-198.46,0.000377,3]
[311181408,1704971864612,-198.46,0.000377,3]
[311181409,1704971864637,-198.46,0.000377,3]
[311181410,1704971864662,-198.46,0.000377,3]
[311181411,1704971864688,-198.46,0.000377,3]
[311181412,1704971864715,-198.46,0.000377,3]
[311181413,1704971864740,-198.46,0.000377,3]
[311181414,1704971864763,-318.38790176,0.00037779,2]
[311181415,1704971864787,-318.38790176,0.000379,2]
[311181416,1704971864813,-22943.28265437,0.00038,3]
[311181417,1704971864841,-91373.33014855,0.00038,2]
[311181418,1704971864865,-20105.07145025,0.00038,4]
[311181419,1704971864889,-53208.79930641,0.00038,2]
[311181420,1704971864913,-150000.0,0.00038,3]
[311181421,1704971864937,-143430.83651652,0.00038,3]
[311181422,1704971865393,-6569.16348348,0.00038,3]
[311181423,1704971865417,-150000.0,0.00038,3]
[311181424,1704971865440,-154.0,0.00038,7]
[311181425,1704971865463,-150.0,0.00038,2]
[311181426,1704971865488,-151.0,0.00038,7]
[311181427,1704971865512,-151.0,0.00038,7]
[311181428,1704971865538,-151.0,0.00038,7]
[311181429,1704971865562,-193.255749,0.00038,7]
[311181430,1704971865587,-862.338447,0.00038,7]
[311181431,1704971865614,-862.338447,0.00038,7]
[311181432,1704971865638,-151.0,0.00038,7]
[311181433,1704971865661,-151.0,0.00038,7]
[311181434,1704971865686,-192.305001,0.00038,7]
[311181435,1704971865710,-151.0,0.00038,7]
[311181436,1704971868961,255.01200763,0.00037006,4]
[311181437,1704971869497,250.0,0.00037,2]
[311181438,1704971870491,1753.88,0.00037004,4]
[311181439,1704971870666,1753.88,0.00037278,4]
[311181440,1704971870974,1753.88,0.00037552,4]
[311181441,1704971871266,1753.88,0.00037826,4]
[311181452,1704971873826,500.0,0.00037006,4]
[311181453,1704971874082,158.58949148,0.0003728,4]
[311181454,1704971875460,625.60365163,0.00037006,4]
[311181455,1704971876326,1011.21,0.00037405,2]
[311181456,1704971879743,1000.0,0.00037213,4]
[311181457,1704971880777,500.0,0.00037006,4]
[311181458,1704971881074,500.0,0.0003728,4]
[311181459,1704971881356,500.0,0.00037554,4]
[311181460,1704971881618,500.0,0.00037828,4]
[311181461,1704971884377,313.72440551,0.00037913,2]
[311181462,1704971885493,5000.0,0.00037,3]
[311181463,1704971885748,353.23327406,0.00037006,4]
[311181464,1704971886245,2000.0,0.00037073,2]
[311181465,1704971890099,510.6518327,0.00037006,4]
[311181466,1704971891120,500.0,0.00037006,5]
[311181467,1704971891303,456.39057124,0.0003728,5]
[311181468,1704971893336,150.0,0.00037999,2]
[311181469,1704971893547,500.0,0.00037006,4]
[311181470,1704971893670,179.86864737,0.00036999,2]
[311181471,1704971893857,327.63097215,0.0003728,4]
[311181472,1704971894077,529.52799198,0.00037006,4]
[311181473,1704971894540,500.0,0.00037006,4]
[311181474,1704971895757,1000.0,0.00037213,4]
[311181475,1704971898571,270.29325042,0.00037006,4]
[311181476,1704971900774,6004.07763623,0.00037213,2]
[311181477,1704971902476,5605.30413116,0.000372,7]
[311181478,1704971904805,423.017,0.00037237,2]
[311181479,1704971905614,5000.0,0.00037,3]
[311181480,1704971908913,417.76534507,0.00037006,4]
[311181481,1704971913447,500.00573711,0.00037006,4]
[311181482,1704971914728,504.8473995,0.00037006,4]
[311181483,1704971919494,1395.71341676,0.00037213,2]
[311181484,1704971919589,500.0,0.00037004,4]
[311181485,1704971919750,1000.0,0.00037213,4]
[311181486,1704971919923,500.0,0.00037278,4]
[311181487,1704971919990,500.0,0.00037006,4]
[311181488,1704971920202,500.0,0.00037552,4]
[311181489,1704971920501,500.0,0.00037826,4]
[311181490,1704971923172,579.55008778,0.00037006,4]